bitfinex-derivatives/quotes_BTCF0:USTF0_20250901
["timestamp","ask_amount","ask_price","bid_price","bid_amount"]
[1756707909020,1.12282253,108090.0,108070.0,0.80622338]
[1756707909220,1.12282253,108090.0,108070.0,0.53152085]
[1756707909625,1.12282253,108090.0,108070.0,0.80622338]
[1756707910723,1.12282253,108090.0,108070.0,0.80822338]
[1756707911325,1.12282253,108090.0,108070.0,0.80922338]
[1756707911823,0.27470253,108080.0,108070.0,0.53452085]
[1756707912021,0.63550253,108090.0,108070.0,0.53452085]
[1756707912228,0.84804,108080.0,108070.0,0.80922338]
[1756707912428,0.65456842,108100.0,108070.0,0.80922338]
[1756707912615,0.40114431,108100.0,108070.0,0.53452085]
[1756707912816,0.84804,108090.0,108080.0,0.27470253]
[1756707913119,0.65456842,108100.0,108070.0,0.53452085]
[1756707913426,1.52388644,108100.0,108070.0,0.53452085]
[1756707913626,1.52388644,108100.0,108080.0,0.27470253]
[1756707915528,1.24918391,108100.0,108080.0,0.27470253]
[1756707915729,1.52388644,108100.0,108080.0,0.27470253]
[1756707916532,0.63550253,108090.0,108070.0,0.53152085]
[1756707916739,0.63550253,108090.0,108070.0,0.80622338]
[1756707918436,0.63550253,108090.0,108070.0,0.74208076]
[1756707918727,0.63550253,108090.0,108070.0,0.74308076]
[1756707919531,0.37986589,108100.0,108070.0,0.72251715]
[1756707919731,0.40113575,108100.0,108080.0,0.27470253]
[1756707919934,1.24921575,108100.0,108080.0,0.27470253]
[1756707920128,1.52391828,108100.0,108080.0,0.27470253]
[1756707920934,1.52391828,108100.0,108070.0,0.44781462]
[1756707921135,1.52391828,108100.0,108080.0,0.27470253]
[1756707921932,1.52391828,108100.0,108070.0,0.72251715]
[1756707922635,1.87391828,108100.0,108070.0,0.72051715]
[1756707923136,1.87391828,108100.0,108070.0,0.44581462]
[1756707923331,1.87391828,108100.0,108070.0,0.72051715]
[1756707924436,1.87391828,108100.0,108070.0,0.44581462]
[1756707924637,1.87391828,108100.0,108070.0,0.72051715]
[1756707924937,1.87391828,108100.0,108070.0,0.72251715]
[1756707925137,0.27470253,108090.0,108070.0,0.72251715]
[1756707925338,0.60470253,108090.0,108070.0,0.72251715]
[1756707925940,0.60470253,108090.0,108070.0,0.44781462]
[1756707926141,0.33,108090.0,108070.0,0.72251715]
[1756707926433,0.33,108090.0,108070.0,0.72051715]
[1756707926638,0.33,108090.0,108070.0,0.72251715]
[1756707926840,0.33,108090.0,108070.0,0.78865977]
[1756707927140,0.33,108090.0,108070.0,0.78765977]
[1756707927340,0.33,108090.0,108070.0,0.78865977]
[1756707927736,0.60470253,108090.0,108070.0,0.78865977]
[1756707929142,0.33,108090.0,108070.0,0.78865977]
[1756707929937,1.15808,108090.0,108080.0,0.27470253]
[1756707930144,1.15808,108090.0,108080.0,0.63550253]
[1756707930339,1.15808,108090.0,108080.0,0.3608]
[1756707930641,1.15808,108090.0,108070.0,0.78865977]
[1756707931240,1.15808,108090.0,108070.0,0.78765977]
[1756707932345,1.15808,108090.0,108070.0,0.78565977]
[1756707932546,1.15808,108090.0,108070.0,0.78665977]
[1756707933148,1.15808,108090.0,108070.0,0.78865977]
[1756707933448,0.37986589,108100.0,108080.0,0.63550253]
[1756707933640,1.21808,108100.0,108090.0,0.27470253]
[1756707933837,1.17808,108100.0,108090.0,0.27470253]
[1756707934147,0.84808,108100.0,108090.0,0.27470253]
[1756707934450,0.84808,108100.0,108090.0,0.63550253]
[1756707934935,0.84808,108100.0,108090.0,0.3608]
[1756707935140,0.84808,108100.0,108090.0,0.63550253]
[1756707936144,1.16808,108100.0,108090.0,0.3608]
[1756707936345,1.16908,108100.0,108090.0,0.3608]
[1756707937049,1.18908,108100.0,108090.0,0.3608]
[1756707938247,1.18908,108100.0,108090.0,0.63550253]
[1756707938952,1.18908,108100.0,108090.0,0.3608]
[1756707945854,1.46378253,108100.0,108090.0,0.3608]
[1756707946056,2.09353402,108100.0,108080.0,0.02032202]
[1756707946256,0.27470253,108090.0,108080.0,0.02032202]
[1756707946459,0.63470253,108090.0,108080.0,0.02032202]
[1756707946756,0.36,108090.0,108080.0,0.02032202]
[1756707946950,0.63470253,108090.0,108080.0,0.02032202]
[1756707947346,1.12270253,108090.0,108080.0,0.02032202]
[1756707947551,1.178,108090.0,108080.0,0.65582455]
[1756707947758,1.178,108090.0,108080.0,0.38112202]
[1756707949757,1.45270253,108090.0,108080.0,0.38112202]
[1756707950057,1.45270253,108090.0,108080.0,0.02032202]
[1756707951752,1.178,108090.0,108080.0,0.02032202]
[1756707951951,1.45270253,108090.0,108080.0,0.02032202]
[1756707953352,1.5388,108090.0,108080.0,0.02032202]
[1756707953559,1.81350253,108090.0,108080.0,0.02032202]
[1756707953760,1.45270253,108090.0,108080.0,0.02032202]
[1756707955267,1.81350253,108090.0,108080.0,0.02032202]
[1756707956859,2.33820506,108090.0,108070.0,0.08401462]
[1756707957066,0.63550253,108080.0,108050.0,0.42694262]
[1756707957362,1.48346253,108070.0,108050.0,0.42694262]
[1756707957557,1.81346253,108070.0,108050.0,0.42694262]
[1756707957759,1.53876,108070.0,108050.0,0.42694262]
[1756707957959,1.81346253,108070.0,108050.0,0.70164515]
[1756707958359,1.81346253,108070.0,108050.0,0.63550253]
[1756707958552,0.848,108060.0,108050.0,0.63550253]
[1756707959260,0.843,108060.0,108050.0,0.3638]
[1756707960268,1.223,108060.0,108050.0,0.3638]
[1756707960858,1.49770253,108060.0,108050.0,0.26228177]
[1756707961364,1.49770253,108060.0,108050.0,0.26428177]
[1756707961567,0.37957028,108070.0,108050.0,0.26428177]
[1756707961766,0.848,108060.0,108050.0,0.01428177]
[1756707962064,1.188,108060.0,108050.0,0.01428177]
[1756707963773,1.46270253,108060.0,108050.0,0.01428177]
[1756707964066,1.82350253,108060.0,108050.0,0.01428177]
[1756707965470,2.34820506,108060.0,108050.0,0.01428177]
[1756707965772,2.33820506,108060.0,108050.0,0.01428177]
[1756707968173,1.50020506,108060.0,108050.0,0.01428177]
[1756707968472,0.9508,108060.0,108050.0,0.01428177]
[1756707968673,2.07358253,108060.0,108050.0,0.01428177]
[1756707968972,2.07358253,108060.0,108050.0,0.005]
[1756707968973,2.36945579,108060.0,108050.0,0.005]
[1756707969677,2.36945321,108060.0,108050.0,0.005]
[1756707970175,4.32481321,108060.0,108050.0,0.005]
[1756707970869,4.32481321,108060.0,108010.0,0.45426425]
[1756707971068,0.27470253,108030.0,108010.0,0.45426425]
[1756707971274,0.84812,108020.0,108010.0,0.45426425]
[1756707971472,0.84812,108020.0,108010.0,0.46357915]
[1756707972272,0.84812,108020.0,108010.0,0.47057915]
[1756707972679,0.84812,108020.0,108010.0,0.47757915]
[1756707973169,0.27470253,108030.0,108010.0,0.74528168]
[1756707973376,1.44286253,108030.0,108010.0,1.00228168]
[1756707973576,1.16816,108030.0,108020.0,0.3608]
[1756707973969,1.16816,108030.0,108010.0,0.75228168]
[1756707974167,0.84816,108030.0,108020.0,0.3608]
[1756707974669,0.8482,108030.0,108020.0,0.3608]
[1756707976174,1.44290253,108030.0,108020.0,0.3608]
[1756707976379,1.44290253,108030.0,108020.0,0.3658]
[1756707976677,0.61470253,108030.0,108020.0,0.005]
[1756707976866,0.84824,108030.0,108020.0,0.3658]
[1756707977072,0.84824,108030.0,108020.0,0.3698]
[1756707980179,1.15824,108030.0,108020.0,0.3698]
[1756707980481,0.3608,108040.0,108020.0,0.3698]
[1756707980683,0.84828,108030.0,108020.0,0.3698]
[1756707982480,0.84828,108030.0,108020.0,0.3658]
[1756707982877,0.84828,108030.0,108020.0,0.3708]
[1756707983477,0.84828,108030.0,108020.0,0.63550253]
[1756707983677,0.84828,108030.0,108020.0,0.3708]
[1756707984282,1.45298253,108030.0,108020.0,0.01]
[1756707986276,1.81378253,108030.0,108020.0,0.01]
[1756707987884,1.45298253,108030.0,108020.0,0.01]
[1756707988896,1.47186872,108030.0,108020.0,0.01]
[1756707989182,1.49311095,108030.0,108020.0,0.01]
[1756707989376,1.21840842,108030.0,108020.0,0.01]
[1756707993986,0.04012842,108030.0,108020.0,0.89550253]
[1756707994195,0.37964553,108050.0,108020.0,0.89550253]
[1756707994390,0.84828,108040.0,108030.0,0.63550253]
[1756707994687,0.89828,108040.0,108030.0,0.63550253]
[1756707995392,0.89828,108040.0,108030.0,0.3608]
[1756707995587,0.89828,108040.0,108030.0,0.63550253]
[1756707995893,0.89828,108040.0,108030.0,0.3608]
[1756707997393,0.89828,108040.0,108030.0,0.65927846]
[1756707997796,0.89828,108040.0,108030.0,0.66327846]
[1756707999295,0.84824,108040.0,108030.0,0.91327846]
[1756708000189,0.86708553,108050.0,108030.0,0.91327846]
[1756708000491,0.32884553,108050.0,108040.0,0.63550253]
[1756708000694,1.17704553,108050.0,108040.0,0.63550253]
[1756708001691,0.86704553,108050.0,108040.0,0.63750253]
[1756708002191,0.86704553,108050.0,108040.0,0.3628]
[1756708002581,0.86704553,108050.0,108040.0,0.3658]
[1756708003794,0.86700553,108050.0,108040.0,0.3658]
[1756708004794,0.86700553,108050.0,108040.0,0.64050253]
[1756708005492,1.23700553,108050.0,108040.0,0.3658]
[1756708005795,0.86700553,108050.0,108040.0,0.3658]
[1756708007796,0.01884553,108050.0,108040.0,0.64050253]
[1756708007991,0.86696553,108050.0,108040.0,0.64050253]
[1756708009098,0.86696553,108050.0,108040.0,0.3658]
[1756708009291,0.86696553,108050.0,108040.0,0.64050253]
[1756708011898,0.86696553,108050.0,108040.0,0.3658]
[1756708017602,0.86696553,108050.0,108040.0,0.005]
[1756708018792,0.86696553,108050.0,108040.0,0.3658]
[1756708019604,0.86696553,108050.0,108040.0,0.3638]
[1756708019906,0.86696553,108050.0,108040.0,0.3658]
[1756708020310,0.86696553,108050.0,108040.0,0.3638]
[1756708020598,0.86696553,108050.0,108040.0,0.3648]
[1756708021107,0.86696553,108050.0,108040.0,0.004]
[1756708021108,1.75246806,108050.0,108040.0,0.004]
[1756708021304,1.23540534,108050.0,108040.0,0.004]
[1756708021604,2.08332534,108050.0,108040.0,0.004]
[1756708022694,2.08332534,108050.0,108040.0,0.003]
[1756708026803,4.31374787,108050.0,108040.0,0.003]
[1756708027006,4.03904534,108050.0,108040.0,0.003]
[1756708027397,3.19112534,108050.0,108040.0,0.003]
[1756708027804,4.03900534,108050.0,108040.0,0.003]
[1756708028502,2.91642281,108050.0,108040.0,0.003]
[1756708028695,3.78904534,108050.0,108040.0,0.003]
[1756708029100,4.03904534,108050.0,108040.0,0.003]
[1756708029701,3.78904534,108050.0,108040.0,0.003]
[1756708030408,2.33536553,108050.0,108040.0,0.003]
[1756708030608,2.33536553,108050.0,108040.0,0.52770253]
[1756708030609,3.18328553,108050.0,108040.0,0.52770253]
[1756708031406,2.82248553,108050.0,108040.0,0.88850253]
[1756708032107,2.82248553,108050.0,108040.0,0.6138]
[1756708032613,0.86676553,108050.0,108040.0,0.6138]
[1756708032810,0.01884553,108050.0,108040.0,0.88850253]
[1756708035108,0.01884553,108050.0,108040.0,0.6138]
[1756708035411,0.01884553,108050.0,108040.0,0.88850253]
[1756708035813,0.01884553,108050.0,108040.0,0.6138]
[1756708036013,0.01884553,108050.0,108040.0,0.88850253]
[1756708038814,0.86664553,108050.0,108040.0,0.88850253]
[1756708039917,0.01884553,108050.0,108040.0,0.88850253]
[1756708042321,0.01884553,108050.0,108040.0,0.6138]
[1756708042522,0.01884553,108050.0,108040.0,0.88850253]
[1756708044123,0.01884553,108050.0,108040.0,0.63850253]
[1756708044423,0.01884553,108050.0,108040.0,0.42994262]
[1756708044627,0.01884553,108050.0,108040.0,0.70464515]
[1756708046023,0.01884553,108050.0,108040.0,0.63850253]
[1756708050531,0.01884553,108050.0,108040.0,0.3638]
[1756708050837,0.01884553,108050.0,108040.0,0.63850253]
[1756708056631,0.3608,108070.0,108040.0,0.63850253]
[1756708056836,1.00653834,108070.0,108050.0,0.27470253]
[1756708057237,0.37103581,108070.0,108060.0,0.27470253]
[1756708057541,1.19976,108070.0,108060.0,0.27470253]
[1756708057734,1.19976,108070.0,108050.0,0.63550253]
[1756708058241,0.35,108070.0,108050.0,0.70164515]
[1756708058444,0.35,108070.0,108060.0,0.63550253]
[1756708058943,0.35,108070.0,108060.0,0.70164515]
[1756708059141,0.001,108070.0,108060.0,1.57634768]
[1756708059340,0.001,108070.0,108060.0,1.22634768]
[1756708059750,0.01858609,108080.0,108060.0,0.95164515]
[1756708060042,0.002,108070.0,108060.0,0.42694262]
[1756708061045,0.002,108070.0,108060.0,0.70164515]
[1756708061443,0.002,108070.0,108060.0,1.55176515]
[1756708061839,0.002,108070.0,108060.0,2.07646768]
[1756708062242,0.01858609,108080.0,108060.0,2.08146768]
[1756708062447,0.34858609,108080.0,108070.0,0.63550253]
[1756708065539,0.34858609,108080.0,108070.0,0.64491035]
[1756708065849,0.34858609,108080.0,108070.0,0.72001711]
[1756708066148,0.34858609,108080.0,108070.0,0.72101711]
[1756708066549,0.34858609,108080.0,108070.0,0.44631458]
[1756708066740,0.34858609,108080.0,108070.0,0.72101711]
[1756708066945,0.34858609,108080.0,108070.0,0.72301711]
[1756708070151,0.87328862,108080.0,108070.0,0.08751458]
[1756708070653,1.23408862,108080.0,108070.0,0.08751458]
[1756708071754,1.23408862,108080.0,108070.0,0.08651458]
[1756708073049,1.23408862,108080.0,108070.0,0.002]
[1756708073248,1.25580164,108080.0,108070.0,0.001]
[1756708073752,1.25580164,108080.0,108050.0,0.02034387]
[1756708073953,1.48418253,108070.0,108050.0,0.02034387]
[1756708074164,1.86418253,108070.0,108050.0,0.02034387]
[1756708075257,1.86418253,108070.0,108050.0,0.02234387]
[1756708075560,1.86418253,108070.0,108050.0,0.03156059]
[1756708076748,1.86418253,108070.0,108050.0,0.03256059]
[1756708077253,1.01550253,108070.0,108050.0,0.03056059]
[1756708077452,0.84824,108060.0,108050.0,0.39336059]
[1756708077755,0.89824,108060.0,108050.0,0.66806312]
[1756708080156,0.89824,108060.0,108050.0,0.66706312]
[1756708080357,0.89824,108060.0,108050.0,0.66806312]
[1756708085263,0.89824,108060.0,108050.0,0.39336059]
[1756708085458,0.89824,108060.0,108050.0,0.66806312]
[1756708087564,0.05,108060.0,108050.0,0.66806312]
[1756708092669,0.05,108060.0,108050.0,0.66606312]
[1756708092959,0.05,108060.0,108050.0,0.39536059]
[1756708093159,0.05,108060.0,108050.0,0.67006312]
[1756708093868,0.31,108060.0,108050.0,0.39536059]
[1756708094055,0.08,108060.0,108050.0,0.39536059]
[1756708095256,0.08,108060.0,108050.0,0.67006312]
[1756708095557,0.59470253,108060.0,108050.0,0.03356059]
[1756708095761,1.20550253,108060.0,108050.0,0.03156059]
[1756708095963,1.20550253,108060.0,108050.0,0.01121672]
[1756708096570,1.20550253,108060.0,108050.0,0.01021672]
[1756708096961,1.22624392,108060.0,108050.0,0.01021672]
[1756708097465,2.07388392,108060.0,108050.0,0.01021672]
[1756708097665,0.59470253,108060.0,108050.0,0.01021672]
[1756708097872,0.32,108060.0,108050.0,0.28491925]
[1756708098062,1.16764,108060.0,108050.0,0.28491925]
[1756708098871,1.16864,108060.0,108050.0,0.28491925]
[1756708099270,1.16864,108060.0,108050.0,0.01021672]
[1756708099570,1.16764,108060.0,108050.0,0.01221672]
[1756708099766,0.32,108060.0,108050.0,0.01221672]
[1756708099964,1.16764,108060.0,108050.0,0.01321672]
[1756708100166,1.44234253,108060.0,108050.0,0.01121672]
[1756708100359,1.82390623,108060.0,108050.0,0.01121672]
[1756708101467,0.97626623,108060.0,108050.0,0.01121672]
[1756708101669,1.82390623,108060.0,108050.0,0.01121672]
[1756708103072,1.80314253,108060.0,108050.0,0.00921672]
[1756708103272,1.80314253,108060.0,108050.0,0.002]
[1756708103570,1.80314253,108060.0,108050.0,0.01137295]
[1756708103976,1.82391465,108060.0,108050.0,0.01137295]
[1756708106378,0.6808,108060.0,108050.0,0.01137295]
[1756708106581,0.6808,108060.0,108050.0,0.28607548]
[1756708106781,1.52844,108060.0,108050.0,0.28407548]
[1756708106978,1.52844,108060.0,108050.0,0.3522181]
[1756708107178,1.52844,108060.0,108050.0,0.28607548]
[1756708107378,1.52844,108060.0,108050.0,0.3522181]
[1756708107778,1.16764,108060.0,108050.0,0.64687548]
[1756708108480,1.16764,108060.0,108050.0,0.37217295]
[1756708108980,1.16764,108060.0,108050.0,0.37017295]
[1756708109278,1.16764,108060.0,108050.0,0.37317295]
[1756708109883,1.16764,108060.0,108050.0,0.37517295]
[1756708110082,1.16764,108060.0,108050.0,0.37417295]
[1756708110782,1.16764,108060.0,108050.0,0.37217295]
[1756708112981,1.80314253,108060.0,108050.0,0.01137295]
[1756708113178,1.44234253,108060.0,108050.0,0.01137295]
[1756708113481,1.80314253,108060.0,108050.0,0.01137295]
[1756708114581,1.80414253,108060.0,108050.0,0.01137295]
[1756708115781,1.80414253,108060.0,108050.0,0.01037295]
[1756708122588,1.52944,108060.0,108050.0,0.01037295]
[1756708122889,1.80414253,108060.0,108050.0,0.01037295]
[1756708126090,1.52944,108060.0,108050.0,0.01037295]
[1756708126280,1.80414253,108060.0,108050.0,0.01037295]
[1756708127089,1.44334253,108060.0,108050.0,0.01037295]
[1756708127587,1.80414253,108060.0,108050.0,0.01037295]
[1756708128193,1.82492538,108060.0,108050.0,0.01037295]
[1756708128391,1.55022285,108060.0,108050.0,0.01037295]
[1756708128592,1.82492538,108060.0,108050.0,0.01037295]
[1756708128992,1.46412538,108060.0,108050.0,0.01037295]
[1756708129192,1.44334253,108060.0,108050.0,0.01037295]
[1756708131195,0.321,108060.0,108050.0,0.01037295]
[1756708131395,1.44334253,108060.0,108050.0,0.01037295]
[1756708133194,1.80414253,108060.0,108050.0,0.01037295]
[1756708134386,2.32884506,108060.0,108050.0,0.01037295]
[1756708134591,2.34960271,108060.0,108050.0,0.01037295]
[1756708136701,2.34960271,108060.0,108050.0,0.001]
[1756708139200,2.09956271,108060.0,108050.0,0.001]
[1756708143308,2.09956271,108060.0,108030.0,0.02074492]
[1756708143309,2.34956271,108060.0,108030.0,0.02074492]
[1756708143506,0.63550253,108040.0,108030.0,0.02074492]
[1756708143709,1.82390018,108040.0,108030.0,0.03005534]
[1756708145612,1.82390018,108040.0,108030.0,0.002]
[1756708145613,2.45940271,108040.0,108030.0,0.002]
[1756708146110,2.18470018,108040.0,108030.0,0.002]
[1756708146313,2.18470018,108040.0,108030.0,0.005]
[1756708146518,1.33706018,108040.0,108030.0,0.005]
[1756708146812,2.46012271,108040.0,108030.0,0.005]
[1756708147413,2.46012271,108040.0,108030.0,0.002]
[1756708147613,2.46012271,108040.0,108030.0,0.01303722]
[1756708148214,2.46012271,108040.0,108030.0,0.004]
[1756708148608,2.18542018,108040.0,108030.0,0.004]
[1756708148812,2.46012271,108040.0,108030.0,0.004]
[1756708149307,2.46019744,108040.0,108030.0,0.004]
[1756708149809,2.71019744,108040.0,108030.0,0.004]
[1756708150213,2.70999744,108040.0,108030.0,0.004]
[1756708151410,1.86183744,108040.0,108030.0,0.004]
[1756708151613,2.18553491,108040.0,108030.0,0.004]
[1756708151810,2.18549491,108040.0,108030.0,0.004]
[1756708156516,1.33713491,108040.0,108030.0,0.004]
[1756708156715,2.18517491,108040.0,108030.0,0.004]
[1756708157509,1.33713491,108040.0,108030.0,0.004]
[1756708157721,2.18513491,108040.0,108030.0,0.004]
[1756708158620,1.33713491,108040.0,108030.0,0.004]
[1756708158821,2.18505491,108040.0,108030.0,0.004]
[1756708161523,1.33713491,108040.0,108030.0,0.004]
[1756708161725,2.18497491,108040.0,108030.0,0.004]
[1756708163124,1.82417491,108040.0,108030.0,0.004]
[1756708166224,2.45967744,108040.0,108030.0,0.004]
[1756708168026,1.61183744,108040.0,108030.0,0.004]
[1756708168219,2.45967744,108040.0,108030.0,0.004]
[1756708178633,2.50948283,108040.0,108030.0,0.004]
[1756708185635,1.66164283,108040.0,108030.0,0.004]
[1756708185834,2.50944283,108040.0,108030.0,0.004]
[1756708188036,2.45963744,108040.0,108030.0,0.004]
[1756708190135,2.50944283,108040.0,108030.0,0.004]
[1756708190935,2.45963744,108040.0,108030.0,0.004]
[1756708191127,2.50944283,108040.0,108030.0,0.004]
[1756708192329,2.50944283,108040.0,108010.0,0.07425235]
[1756708192532,0.99630253,108020.0,108000.0,0.0092442]
[1756708192733,1.48326253,108010.0,107990.0,0.42694262]
[1756708193035,0.27470253,108000.0,107990.0,0.42694262]
[1756708193236,0.60470253,108000.0,107990.0,0.50066799]
[1756708195038,0.60470253,108000.0,107990.0,0.50666799]
[1756708195739,0.84776,108000.0,107990.0,0.51166799]
[1756708197036,0.84776,108000.0,107990.0,0.52102677]
[1756708197734,1.12246253,108000.0,107990.0,0.52102677]
[1756708199640,1.12246253,108000.0,107990.0,0.59102677]
[1756708200043,0.3608,108020.0,107990.0,1.1157293]
[1756708200229,0.3611266,108020.0,108010.0,0.63550253]
[1756708200431,0.11,108020.0,108010.0,0.52726361]
[1756708200636,1.12242253,108030.0,108010.0,0.80196614]
[1756708200839,1.12242253,108030.0,108020.0,0.3608]
[1756708200840,1.22772,108030.0,108020.0,0.3608]
[1756708201040,1.22772,108030.0,108020.0,0.4308]
[1756708202140,1.50242253,108030.0,108020.0,0.4408]
[1756708202737,1.50242253,108030.0,108020.0,0.4438]
[1756708202938,0.65470253,108030.0,108020.0,0.4438]
[1756708203239,1.50242253,108030.0,108020.0,0.4438]
[1756708203944,0.38,108030.0,108020.0,0.96850253]
[1756708204240,0.3793563,108050.0,108020.0,0.95464515]
[1756708204443,0.84768,108040.0,108030.0,0.70164515]
[1756708204637,1.17768,108040.0,108030.0,0.42694262]
[1756708205238,1.17768,108040.0,108030.0,0.3608]
[1756708205541,1.17768,108040.0,108030.0,0.63550253]
[1756708206040,1.17768,108040.0,108030.0,0.63650253]
[1756708206839,1.17768,108040.0,108030.0,0.70464515]
[1756708207541,0.87768,108040.0,108030.0,0.70464515]
[1756708208245,0.8661563,108050.0,108030.0,0.95464515]
[1756708208446,1.1861163,108050.0,108040.0,0.63550253]
[1756708209144,1.1861163,108050.0,108040.0,0.3608]
[1756708209841,1.46181883,108050.0,108040.0,0.3608]
[1756708210041,1.46181883,108050.0,108030.0,0.72448115]
[1756708210243,1.1871163,108050.0,108030.0,0.44977862]
[1756708210439,1.46181883,108050.0,108030.0,0.44977862]
[1756708210744,1.46181883,108050.0,108040.0,0.001]
[1756708211147,2.07261883,108050.0,108040.0,0.001]
[1756708212648,2.09366028,108050.0,108040.0,0.001]
[1756708212943,2.09266028,108050.0,108040.0,0.001]
[1756708213334,2.09254028,108050.0,108030.0,0.023836]
[1756708213536,0.27470253,108040.0,108030.0,0.023836]
[1756708213750,1.48214253,108040.0,108030.0,0.023836]
[1756708213939,1.48214253,108040.0,108030.0,0.022836]
[1756708214246,1.84294253,108040.0,108030.0,0.020836]
[1756708215946,1.84294253,108040.0,108030.0,0.021836]
[1756708216245,1.84294253,108040.0,108030.0,0.023836]
[1756708217245,1.56824,108040.0,108030.0,0.023836]
[1756708217543,1.84294253,108040.0,108030.0,0.023836]
[1756708218044,0.7208,108040.0,108030.0,0.023836]
[1756708218349,0.84748,108040.0,108030.0,0.384636]
[1756708219545,1.12218253,108040.0,108030.0,0.384636]
[1756708219744,0.84748,108040.0,108030.0,0.384636]
[1756708221150,1.12218253,108040.0,108030.0,0.384636]
[1756708225349,1.48298253,108040.0,108030.0,0.023836]
[1756708225950,0.84748,108040.0,108030.0,0.023836]
[1756708226151,1.12218253,108040.0,108030.0,0.023836]
[1756708233548,1.88298253,108040.0,108030.0,0.023836]
[1756708233855,1.73298253,108040.0,108030.0,0.023836]
[1756708234046,1.93298253,108040.0,108030.0,0.023836]
[1756708234459,1.65828,108040.0,108030.0,0.023836]
[1756708234655,1.93298253,108040.0,108030.0,0.023836]
[1756708236752,1.6582,108040.0,108030.0,0.023836]
[1756708236953,1.93290253,108040.0,108030.0,0.023836]
[1756708237455,1.08550253,108040.0,108030.0,0.023836]
[1756708237661,1.93290253,108040.0,108030.0,0.023836]
[1756708240165,1.95390827,108040.0,108030.0,0.023836]
[1756708240368,1.0474,108040.0,108030.0,0.023836]
[1756708240559,1.0474,108040.0,108030.0,0.384636]
[1756708240964,1.32210253,108040.0,108030.0,0.384636]
[1756708242572,0.47470253,108040.0,108030.0,0.384636]
[1756708242765,1.32210253,108040.0,108030.0,0.384636]
[1756708243172,1.34311899,108040.0,108030.0,0.384636]
[1756708245173,0.22101646,108040.0,108030.0,0.384636]
[1756708245379,0.86841646,108040.0,108030.0,0.65933853]
[1756708245671,0.86841646,108040.0,108030.0,0.384636]
[1756708246169,0.02101646,108040.0,108030.0,0.65933853]
[1756708246372,0.7394,108040.0,108030.0,0.90933853]
[1756708246572,0.8671563,108050.0,108030.0,0.90933853]
[1756708246775,0.8671563,108050.0,108040.0,0.06661033]
[1756708247772,0.8670763,108050.0,108040.0,0.70211286]
[1756708248273,0.8670763,108050.0,108040.0,0.70311286]
[1756708249173,0.8670763,108050.0,108040.0,0.63650253]
[1756708249373,0.8680763,108050.0,108040.0,0.63650253]
[1756708249768,0.8680763,108050.0,108040.0,0.88650253]
[1756708250471,0.8680763,108050.0,108040.0,0.95311286]
[1756708251172,0.8680763,108050.0,108040.0,0.88650253]
[1756708251572,0.8680763,108050.0,108040.0,0.6118]
[1756708251773,0.8680763,108050.0,108040.0,0.67841033]
[1756708253075,0.0195563,108050.0,108040.0,0.67841033]
[1756708253265,0.8680363,108050.0,108040.0,0.67841033]
[1756708253967,0.001,108050.0,108040.0,0.63650253]
[1756708254170,0.84948,108050.0,108040.0,0.70311286]
[1756708254673,0.84948,108050.0,108040.0,0.42841033]
[1756708254973,0.84948,108050.0,108040.0,0.70311286]
[1756708256366,0.84948,108050.0,108040.0,0.42841033]
[1756708256977,1.73498253,108050.0,108040.0,0.001]
[1756708259378,1.48498253,108050.0,108040.0,0.001]
[1756708260382,1.21028,108050.0,108040.0,0.001]
[1756708260578,1.48498253,108050.0,108040.0,0.001]
[1756708260981,1.21028,108050.0,108040.0,0.001]
[1756708261180,1.48498253,108050.0,108040.0,0.001]
[1756708263988,1.74498253,108050.0,108040.0,0.001]
[1756708264277,2.11498253,108050.0,108040.0,0.001]
[1756708264485,2.1356826,108050.0,108040.0,0.001]
[1756708264879,1.2872026,108050.0,108040.0,0.001]
[1756708265178,1.0372026,108050.0,108040.0,0.001]
[1756708265383,1.8857226,108050.0,108040.0,0.001]
[1756708265779,1.0372026,108050.0,108040.0,0.001]
[1756708265981,0.76250007,108050.0,108040.0,0.001]
[1756708266185,1.48634253,108050.0,108040.0,0.001]
[1756708266490,1.22554253,108050.0,108040.0,0.001]
[1756708266676,1.83634253,108050.0,108040.0,0.001]
[1756708266881,2.07634253,108050.0,108040.0,0.001]
[1756708267079,2.09704417,108050.0,108010.0,0.44773132]
[1756708267282,0.27470253,108020.0,108010.0,0.44773132]
[1756708267581,1.12494253,108020.0,108010.0,0.08693132]
[1756708267780,1.48574253,108020.0,108010.0,0.08693132]
[1756708268089,1.48574253,108020.0,108010.0,0.02032099]
[1756708269484,1.48574253,108020.0,108010.0,0.02432099]
[1756708269891,0.3608,108030.0,108010.0,0.38512099]
[1756708270076,0.3608,108030.0,108010.0,0.38812099]
[1756708270280,0.84676,108020.0,108010.0,0.38812099]
[1756708270484,0.84676,108020.0,108010.0,0.38712099]
[1756708271684,1.12146253,108020.0,108010.0,0.38712099]
[1756708272891,1.12146253,108020.0,108010.0,0.02632099]
[1756708273084,1.48226253,108020.0,108010.0,0.02332099]
[1756708273292,1.48226253,108020.0,108010.0,0.02732099]
[1756708273685,1.73226253,108020.0,108010.0,0.02732099]
[1756708274692,2.06226253,108020.0,108010.0,0.02732099]
[1756708278288,2.34629821,108020.0,108010.0,0.007]
[1756708278589,2.08291082,108020.0,108010.0,0.007]
[1756708278981,2.08639082,108020.0,108010.0,0.007]
[1756708279182,0.98615082,108020.0,108010.0,0.007]
[1756708279393,1.83643082,108020.0,108010.0,0.007]
[1756708279792,1.83647082,108020.0,108010.0,0.007]
[1756708280194,1.83647082,108020.0,108010.0,0.003]
[1756708280897,1.83631082,108020.0,108010.0,0.003]
[1756708281194,1.81566253,108020.0,108010.0,0.003]
[1756708281596,1.81766253,108020.0,107990.0,0.08298918]
[1756708281792,0.27470253,108000.0,107980.0,0.3608]
[1756708282090,0.85004,107990.0,107980.0,0.63550253]
[1756708283697,0.27470253,108000.0,107980.0,0.63550253]
[1756708283992,0.38135495,108020.0,107990.0,0.97809393]
[1756708283993,0.02055495,108020.0,107990.0,0.97809393]
[1756708284297,0.31,108020.0,108010.0,0.63550253]
[1756708284596,0.85044,108020.0,108010.0,0.63550253]
[1756708284791,1.97493628,108030.0,108010.0,0.88550253]
[1756708284996,0.85052,108020.0,108010.0,0.88550253]
[1756708285603,0.85052,108020.0,108010.0,0.63550253]
[1756708285994,2.82541628,108030.0,108010.0,0.63650253]